bitfinex-derivatives/quotes_SOLF0:USTF0_20251211
["timestamp","ask_amount","ask_price","bid_price","bid_amount"]
[1765469378863,63.76,130.45,130.39,3.31]
[1765469379473,6.53382,130.45,130.39,3.31]
[1765469379868,0.05006248,130.43,130.41,3.36278476]
[1765469380170,0.05006248,130.43,130.41,0.05278476]
[1765469380769,0.05006248,130.43,130.41,3.36278476]
[1765469381674,0.05006248,130.43,130.42,3.31]
[1765469382266,6.53382,130.45,130.43,3.31]
[1765469382973,6.53382,130.45,130.41,76.33982088]
[1765469383177,0.05639047,130.44,130.42,3.31]
[1765469383376,0.05639047,130.44,130.41,3.36278476]
[1765469385364,0.05639047,130.44,130.42,3.31]
[1765469385774,0.05639047,130.44,130.42,10.2099]
[1765469385971,4.09409162,130.45,130.44,3.31]
[1765469387178,3.3,130.54,130.44,3.31]
[1765469387371,3.3,130.54,130.45,3.31]
[1765469388275,0.05353543,130.51,130.48,0.05036197]
[1765469388878,0.05353543,130.51,130.48,3.16036197]
[1765469389272,3.47353543,130.51,130.48,0.05036197]
[1765469389873,10.36903543,130.51,130.48,0.05036197]
[1765469390075,3.42,130.5,130.48,0.05036197]
[1765469390881,0.05353543,130.51,130.48,0.05036197]
[1765469391088,0.05353543,130.51,130.48,3.16036197]
[1765469391580,3.42,130.56,130.5,3.11]
[1765469391971,10.3129,130.56,130.52,3.11]
[1765469392579,0.05392855,130.55,130.53,0.05573307]
[1765469393078,6.94732855,130.55,130.53,0.05573307]
[1765469393273,3.42,130.54,130.53,0.05573307]
[1765469393478,0.05392855,130.55,130.53,0.05573307]
[1765469394084,3.42,130.54,130.53,0.05573307]
[1765469394785,6.8949,130.52,130.48,3.11]
[1765469395589,10.3149,130.52,130.48,3.11]
[1765469395774,6.94790531,130.51,130.49,0.05285758]
[1765469395981,3.42,130.5,130.49,0.05285758]
[1765469396179,6.94790531,130.51,130.49,0.05285758]
[1765469398496,0.05240531,130.51,130.49,0.05285758]
[1765469398702,0.05240531,130.51,130.49,3.15285758]
[1765469399294,0.05240531,130.51,130.49,0.05285758]
[1765469399495,3.31240531,130.51,130.49,0.05285758]
[1765469400501,6.94790531,130.51,130.49,0.05285758]
[1765469400703,0.05240531,130.51,130.49,0.05285758]
[1765469400904,6.94790531,130.51,130.49,0.05285758]
[1765469401204,0.05240531,130.51,130.49,0.05285758]
[1765469401393,0.05240531,130.51,130.49,10.04915758]
[1765469401593,0.05240531,130.51,130.5,3.1]
[1765469401792,3.26,130.59,130.52,10.91703612]
[1765469401997,7.81703612,130.64,130.52,10.91703612]
[1765469401998,107.1678,130.63,130.55,3.1]
[1765469402203,3.26,130.62,130.55,3.1]
[1765469402392,3.26,130.62,130.55,10.91703612]
[1765469402598,6.8886,130.64,130.57,3.1]
[1765469402798,0.05783637,130.62,130.6,3.1]
[1765469403098,0.05783637,130.62,130.59,3.15343946]
[1765469403605,0.05783637,130.62,130.6,3.1]
[1765469404001,0.05783637,130.62,130.61,3.1]
[1765469404307,175.4828,130.71,130.62,3.1]
[1765469404605,3.26,130.66,130.59,3.1]
[1765469404806,3.26,130.66,130.55,76.03703612]
[1765469404807,3.26,130.64,130.55,76.03703612]
[1765469404990,3.26,130.62,130.55,82.93013612]
[1765469405195,0.05100335,130.6,130.57,0.05094383]
[1765469406400,0.05100335,130.6,130.57,3.15094383]
[1765469406805,0.05100335,130.6,130.58,3.1]
[1765469407207,107.1261,130.68,130.59,3.1]
[1765469407708,68.38,130.66,130.59,3.1]
[1765469407903,3.26,130.64,130.56,10.91703612]
[1765469408098,3.26,130.64,130.59,0.05358381]
[1765469408296,10.20475807,130.61,130.59,0.05358381]
[1765469408493,3.26,130.6,130.59,0.05358381]
[1765469408694,3.26,130.6,130.55,65.1]
[1765469409297,3.31415807,130.61,130.56,3.1]
[1765469409705,3.31415807,130.61,130.57,0.05460067]
[1765469410598,10.1508,130.6,130.57,0.05460067]
[1765469410796,3.26,130.59,130.57,0.05460067]
[1765469411312,10.1517,130.59,130.57,0.05460067]
[1765469413118,6.94455807,130.61,130.57,0.05460067]
[1765469413323,10.20455807,130.61,130.57,0.05460067]
[1765469413510,10.20455807,130.61,130.57,3.15460067]
[1765469413701,6.94455807,130.61,130.57,3.15460067]
[1765469414215,0.05415807,130.61,130.57,3.15460067]
[1765469414412,0.05415807,130.61,130.58,3.1]
[1765469414913,3.31415807,130.61,130.57,0.05460067]
[1765469415515,3.31415807,130.61,130.57,3.15460067]
[1765469416014,3.26,130.59,130.57,0.05460067]
[1765469416327,110.4604,130.59,130.52,7.81703612]
[1765469416527,3.26,130.58,130.52,7.81703612]
[1765469417609,0.05283947,130.56,130.54,0.05735262]
[1765469417906,6.94563947,130.56,130.54,0.05735262]
[1765469418108,0.05283947,130.56,130.54,3.15735262]
[1765469418824,0.05283947,130.56,130.54,0.05735262]
[1765469419210,0.05283947,130.56,130.54,3.46735262]
[1765469422214,3.26283947,130.56,130.54,0.05735262]
[1765469423013,6.8903,130.61,130.57,3.41]
[1765469423224,3.21,130.61,130.55,11.22703612]
[1765469423409,3.21,130.61,130.55,3.41]
[1765469424126,107.1924,130.6,130.52,26.6155707]
[1765469424413,3.21,130.58,130.57,0.05000155]
[1765469424621,3.21,130.57,130.52,3.41]
[1765469424919,6.8934,130.55,130.52,3.41]
[1765469425417,3.21,130.56,130.5,65.1]
[1765469425614,6.8932,130.56,130.51,3.41]
[1765469425818,0.05560537,130.54,130.53,3.41]
[1765469426012,3.21,130.61,130.53,3.41]
[1765469426516,3.21,130.58,130.53,3.41]
[1765469426720,3.21,130.58,130.5,91.93519907]
[1765469426920,0.04979509,130.55,130.53,0.05152944]
[1765469428819,3.25979509,130.55,130.53,0.05152944]
[1765469429217,0.04979509,130.55,130.53,0.05152944]
[1765469429419,0.04979509,130.55,130.53,3.46152944]
[1765469429823,0.04979509,130.55,130.53,0.05152944]
[1765469430017,6.94339509,130.55,130.53,0.05152944]
[1765469430213,10.15339509,130.55,130.53,0.05152944]
[1765469430713,0.04979509,130.55,130.53,3.46152944]
[1765469431123,0.04979509,130.55,130.53,0.05152944]
[1765469432423,0.04979509,130.55,130.53,3.46152944]
[1765469432633,3.21,130.62,130.54,3.41]
[1765469433421,10.1013,130.59,130.54,3.41]
[1765469433629,0.05194382,130.58,130.55,3.46269339]
[1765469434423,0.05194382,130.58,130.56,10.3026]
[1765469434621,0.05194382,130.58,130.55,3.46269339]
[1765469434820,6.94384382,130.58,130.55,3.46269339]
[1765469435025,3.21,130.57,130.55,0.05269339]
[1765469435819,3.21,130.56,130.55,0.05269339]
[1765469438116,3.21,130.56,130.55,0.00269339]
[1765469438320,6.8923,130.57,130.55,0.00269339]
[1765469438626,10.1023,130.57,130.55,0.00269339]
[1765469438821,6.8923,130.57,130.55,0.00269339]
[1765469439024,3.21,130.56,130.55,0.00269339]
[1765469441630,10.1028,130.56,130.55,0.00269339]
[1765469442820,3.21,130.56,130.5,45.8404822]
[1765469443231,3.21,130.56,130.51,19.00528313]
[1765469443427,6.894,130.54,130.51,22.41528313]
[1765469443629,3.21,130.56,130.51,22.41528313]
[1765469443823,0.05559992,130.55,130.52,0.0557658]
[1765469444127,3.21,130.54,130.52,0.0557658]
[1765469444816,10.1044,130.53,130.52,0.0557658]
[1765469445223,3.21,130.52,130.48,19.00528313]
[1765469445527,3.21,130.52,130.47,22.41528313]
[1765469445928,6.8959,130.51,130.47,29.31278313]
[1765469446118,107.2325,130.55,130.48,3.41]
[1765469446324,0.04984425,130.53,130.5,0.04930459]
[1765469446931,10.1049,130.52,130.5,0.04930459]
[1765469447626,0.04984425,130.53,130.5,0.04930459]
[1765469447826,0.04984425,130.53,130.5,3.45930459]
[1765469448022,3.25984425,130.53,130.5,0.04930459]
[1765469448224,3.25984425,130.53,130.5,23.51127791]
[1765469448423,3.25984425,130.53,130.5,0.04930459]
[1765469449936,6.895,130.52,130.5,0.04930459]
[1765469451037,10.1354,130.51,130.5,23.18260803]
[1765469451829,10.1354,130.51,130.45,19.00528313]
[1765469451830,3.24,130.48,130.45,19.00528313]
[1765469452138,3.24,130.47,130.44,23.16233992]
[1765469452328,3.24,130.47,130.41,19.00528313]
[1765469452937,0.05314522,130.45,130.43,0.05052597]
[1765469453336,0.05314522,130.45,130.43,3.24052597]
[1765469454129,0.05314522,130.45,130.44,3.19]
[1765469454929,0.05314522,130.45,130.43,10.14012597]
[1765469455233,0.05314522,130.45,130.43,0.05052597]
[1765469455635,0.05314522,130.45,130.43,23.16403758]
[1765469456629,0.05314522,130.45,130.44,3.19]
[1765469457240,0.05314522,130.45,130.43,23.16403758]
[1765469457541,3.29314522,130.45,130.43,23.16403758]
[1765469457740,3.29314522,130.45,130.43,0.05052597]
[1765469458438,3.24,130.44,130.39,3.19]
[1765469458736,3.24,130.44,130.37,65.1]
[1765469459135,6.9002,130.42,130.38,10.0922]
[1765469459644,0.05629554,130.41,130.39,0.05418171]
[1765469460268,3.24,130.47,130.4,3.19]
[1765469460539,3.24,130.47,130.43,6.8995]
[1765469460734,3.24,130.47,130.42,3.19]
[1765469461238,0.05332243,130.46,130.43,3.24402985]
[1765469461435,3.29332243,130.46,130.43,0.05402985]
[1765469461628,0.05332243,130.46,130.43,3.24402985]
[1765469461828,0.05332243,130.46,130.44,6.8991]
[1765469462033,0.05332243,130.46,130.43,3.24402985]
[1765469462429,0.05332243,130.46,130.44,3.19]
[1765469464037,0.05332243,130.46,130.44,10.089]
[1765469465544,0.05332243,130.46,130.45,3.19]
[1765469466151,3.24,130.5,130.46,3.19]
[1765469466446,3.24,130.54,130.48,3.19]
[1765469466633,3.24,130.57,130.5,10.0858]
[1765469467039,0.05877679,130.55,130.52,0.05106413]
[1765469467239,3.29877679,130.55,130.52,0.05106413]
[1765469467544,3.24,130.54,130.52,0.05106413]
[1765469467846,10.1341,130.54,130.52,0.05106413]
[1765469468038,3.24,130.53,130.52,0.05106413]
[1765469468947,10.1341,130.54,130.52,0.05106413]
[1765469469649,3.24,130.53,130.52,0.05106413]
[1765469471245,10.1341,130.54,130.52,0.05106413]
[1765469471442,6.8968,130.49,130.43,22.19528313]
[1765469471751,3.24,130.49,130.44,3.19]
[1765469472244,3.24,130.48,130.44,3.19]
[1765469472752,0.05350848,130.47,130.45,0.05553266]
[1765469473446,10.14130848,130.47,130.45,0.05553266]
[1765469473642,3.19,130.46,130.45,0.05553266]
[1765469474042,6.95130848,130.47,130.45,0.05553266]
[1765469474241,10.14130848,130.47,130.45,0.05553266]
[1765469474651,0.05350848,130.47,130.45,3.39553266]
[1765469475141,0.05350848,130.47,130.45,0.05553266]
[1765469475342,0.05350848,130.47,130.45,3.39553266]
[1765469476153,0.05350848,130.47,130.45,10.29403266]
[1765469476355,0.05350848,130.47,130.46,3.34]
[1765469476852,0.05350848,130.47,130.45,0.05553266]
[1765469477044,0.05350848,130.47,130.45,3.39553266]
[1765469478254,3.19,130.52,130.45,3.39553266]
[1765469478463,3.19,130.52,130.46,10.2379]
[1765469478761,3.19,130.52,130.47,3.42]
[1765469479057,172.363,130.54,130.48,3.42]
[1765469479256,107.243,130.54,130.5,0.05644181]
[1765469479558,0.0525407,130.52,130.5,0.05644181]
[1765469479853,6.9476407,130.52,130.5,3.47644181]
[1765469480057,6.9476407,130.52,130.5,0.05644181]
[1765469480846,10.0576407,130.52,130.5,0.05644181]
[1765469481048,3.11,130.51,130.45,65.14]
[1765469481253,6.898,130.47,130.45,68.56]
[1765469482058,6.898,130.47,130.45,65.14]
[1765469482254,6.95128985,130.47,130.45,65.19387801]
[1765469483660,10.06128985,130.47,130.45,65.19387801]
[1765469483862,6.8989,130.45,130.41,22.42528313]
[1765469484063,6.8989,130.45,130.41,3.42]
[1765469484862,0.05555994,130.44,130.42,3.47546148]
[1765469485859,3.16555994,130.44,130.39,22.82553795]
[1765469486058,6.9002,130.42,130.38,10.3218]
[1765469486265,6.9002,130.42,130.39,3.42]
[1765469486556,3.11,130.46,130.39,3.42]
[1765469486951,3.11,130.43,130.41,0.05393963]
[1765469487148,10.06198768,130.44,130.41,0.05393963]
[1765469487764,3.16248768,130.44,130.41,0.05393963]
[1765469488352,3.11,130.41,130.36,3.42]
[1765469489366,0.05457222,130.4,130.37,0.04893686]
[1765469489664,0.05457222,130.4,130.37,3.46893686]
[1765469491970,3.11,130.45,130.39,3.42]
[1765469492965,0.05462535,130.43,130.41,0.05091314]
[1765469493561,3.16462535,130.43,130.41,0.05091314]
[1765469493869,0.05462535,130.43,130.41,0.05091314]
[1765469494463,3.16462535,130.43,130.41,0.05091314]
[1765469494865,10.06432535,130.43,130.41,0.05091314]
[1765469495577,3.16462535,130.43,130.41,0.05091314]
[1765469495766,0.05462535,130.43,130.41,3.47091314]
[1765469496169,3.11,130.5,130.43,3.42]
[1765469497164,3.11,130.47,130.45,0.05015208]
[1765469497369,0.05082466,130.48,130.45,3.47015208]
[1765469497963,0.05082466,130.48,130.47,3.42]
[1765469498167,0.05082466,130.48,130.46,6.898]
[1765469498371,0.05082466,130.48,130.46,10.318]
[1765469499975,3.16082466,130.48,130.45,0.05015208]
[1765469500566,10.05792466,130.48,130.45,0.05015208]
[1765469500761,3.11,130.47,130.45,0.05015208]
[1765469501377,3.11,130.46,130.45,0.05015208]
[1765469501577,3.16082466,130.48,130.45,0.05015208]
[1765469503767,0.05082466,130.48,130.45,10.36865208]
[1765469504479,3.16082466,130.48,130.45,0.05015208]
[1765469505478,3.11,130.46,130.45,0.05015208]
[1765469506671,3.11,130.44,130.39,91.04658313]
[1765469506869,3.11,130.44,130.39,94.46658313]
[1765469507075,3.11,130.44,130.39,75.4613]
[1765469507774,3.16136744,130.43,130.4,0.04871985]
[1765469507973,0.05136744,130.43,130.4,0.04871985]
[1765469508173,0.05136744,130.43,130.4,6.94991985]
[1765469508777,3.24136744,130.43,130.4,0.04871985]
[1765469510566,0.05136744,130.43,130.4,0.04871985]
[1765469510771,0.05136744,130.43,130.4,3.38871985]
[1765469510969,0.05136744,130.43,130.4,10.28981985]
[1765469511373,0.05136744,130.43,130.4,6.94981985]
[1765469511575,0.05136744,130.43,130.4,10.28981985]
[1765469511873,0.05136744,130.43,130.41,3.34]
[1765469512270,0.05136744,130.43,130.4,6.94981985]
[1765469512271,0.05136744,130.43,130.4,10.28981985]
[1765469514080,3.24136744,130.43,130.4,6.94981985]
[1765469514979,3.19,130.42,130.4,0.04871985]
[1765469515582,0.05136744,130.43,130.4,0.04871985]
[1765469515886,0.05136744,130.43,130.4,3.38871985]
[1765469516077,0.05136744,130.43,130.4,10.28991985]
[1765469516983,0.05136744,130.43,130.4,6.94991985]
[1765469516984,3.24136744,130.43,130.4,6.94991985]
[1765469517372,3.24136744,130.43,130.4,0.04871985]
[1765469518585,3.19,130.42,130.4,0.04871985]
[1765469520093,10.14106744,130.43,130.4,0.04871985]
[1765469520784,3.19,130.42,130.4,0.04871985]
[1765469521287,110.5317,130.42,130.36,22.77160309]
[1765469521485,3.19,130.37,130.34,3.34]
[1765469521681,10.0925,130.38,130.34,3.34]
[1765469522279,10.0925,130.38,130.34,10.2444]
[1765469522491,10.15049059,130.37,130.35,0.05560906]
[1765469523178,10.15049059,130.37,130.35,22.53447901]
[1765469523785,3.19,130.36,130.35,22.53447901]
[1765469523978,0.05759059,130.37,130.35,0.05560906]
[1765469524176,3.24759059,130.37,130.35,0.05560906]
[1765469526087,3.24759059,130.37,130.28,11.17111483]
[1765469526088,3.19,130.35,130.28,11.17111483]
[1765469526483,3.19,130.35,130.28,12.50628978]
[1765469526683,10.0952,130.33,130.28,12.50628978]
[1765469526986,3.24323803,130.32,130.28,4.67517495]
[1765469527390,3.24323803,130.32,130.28,24.81600086]
[1765469527585,3.24323803,130.32,130.28,1.33517495]
[1765469527780,3.24323803,130.32,130.28,4.67517495]
[1765469528187,0.05323803,130.32,130.29,3.34]
[1765469528895,3.19,130.39,130.31,3.34]
[1765469529091,65.18,130.41,130.32,11.17111483]
[1765469529092,3.19,130.38,130.32,11.17111483]
[1765469529289,3.19,130.38,130.33,10.2448]
[1765469529596,3.19,130.37,130.33,3.34]
[1765469529789,0.05806116,130.36,130.34,0.05315111]
[1765469529989,0.05806116,130.36,130.34,3.39315111]
[1765469530896,0.05806116,130.36,130.34,18.12856594]
[1765469531092,3.19,130.43,130.36,3.34]
[1765469531293,3.19,130.43,130.37,183.72591483]
[1765469531596,3.19,130.43,130.39,7.83111483]
[1765469531988,3.19,130.43,130.37,76.35111483]
[1765469532188,3.24290557,130.41,130.39,0.04905057]
[1765469533395,0.05290557,130.41,130.39,3.38905057]
[1765469534201,0.05290557,130.41,130.4,3.34]
[1765469534389,3.19,130.5,130.42,3.34]
[1765469534592,3.19,130.49,130.45,3.34]
[1765469535092,3.19,130.49,130.42,3.34]
[1765469535292,3.19,130.46,130.44,0.05118012]
[1765469536396,3.19,130.45,130.39,3.34]
[1765469536894,107.2988,130.47,130.39,3.34]
[1765469536895,3.19,130.47,130.39,3.34]
[1765469537399,0.05108802,130.44,130.43,3.15]
[1765469539098,0.05108802,130.44,130.42,0.05747385]
[1765469539301,3.39108802,130.44,130.42,0.05747385]
[1765469539493,10.29048802,130.44,130.42,0.05747385]
[1765469540502,3.34,130.43,130.42,0.05747385]
[1765469541304,3.34,130.41,130.37,65.18]
[1765469541497,3.34,130.41,130.37,68.55]
[1765469541908,10.2414,130.4,130.37,65.18]
[1765469542204,3.34,130.39,130.37,0.05740038]
[1765469542391,10.2422,130.39,130.37,0.05740038]
[1765469543705,3.34,130.38,130.37,0.05740038]
[1765469544003,10.2422,130.39,130.37,0.05740038]
[1765469544907,3.34,130.38,130.37,0.05740038]
[1765469545201,6.9029,130.37,130.31,6.9059]
[1765469545396,6.9029,130.37,130.31,10.2759]
[1765469545992,0.04937098,130.35,130.32,10.2753]
[1765469546197,0.04937098,130.35,130.32,3.37]
[1765469546804,0.04937098,130.35,130.34,3.37]
[1765469548198,0.04937098,130.35,130.33,7.83111483]
[1765469548399,0.04937098,130.35,130.31,10.2756]
[1765469548602,0.04937098,130.35,130.32,3.37]
[1765469549902,0.04937098,130.35,130.33,10.2746]
[1765469550703,0.04937098,130.35,130.33,3.37]
[1765469550908,0.04937098,130.35,130.32,3.37]
[1765469551103,3.38937098,130.35,130.31,6.9056]
[1765469551305,3.38937098,130.35,130.31,3.37]
[1765469551900,0.04937098,130.35,130.32,3.37]
[1765469553510,3.38937098,130.35,130.31,6.9059]
[1765469553701,3.38937098,130.35,130.3,68.55]
[1765469554196,3.38937098,130.35,130.3,65.18]
[1765469554401,3.38937098,130.35,130.3,68.55]
[1765469554601,3.38937098,130.35,130.31,3.37]
[1765469554805,10.29347098,130.35,130.31,3.37]
[1765469555513,10.29347098,130.35,130.31,10.2759]
[1765469555705,3.38937098,130.35,130.32,3.37]
[1765469556412,0.04937098,130.35,130.33,3.37]
[1765469557408,0.04937098,130.35,130.32,6.9054]
[1765469557609,0.04937098,130.35,130.32,10.2754]
[1765469558615,3.34,130.34,130.3,75.456]
[1765469558806,3.34,130.34,130.31,3.37]
[1765469559109,3.38937098,130.35,130.31,3.37]
[1765469559414,0.04937098,130.35,130.32,3.37]
[1765469560014,0.04937098,130.35,130.33,3.37]
[1765469560216,3.38937098,130.35,130.3,3.37]
[1765469560814,0.04937098,130.35,130.32,3.37]
[1765469561415,3.38937098,130.35,130.32,3.37]
[1765469561616,3.38937098,130.35,130.31,3.37]
[1765469561908,3.38937098,130.35,130.29,3.37]
[1765469562114,3.38937098,130.35,130.3,3.37]
[1765469562718,3.34,130.32,130.28,93.44048688]
[1765469562908,0.04937408,130.31,130.29,3.37]
[1765469564414,3.38937408,130.31,130.25,3.37]
[1765469564610,3.38834318,130.29,130.25,3.37]
[1765469564811,3.38834318,130.29,130.23,3.37]
[1765469565218,0.04834318,130.29,130.23,3.37]
[1765469565521,0.04834318,130.29,130.25,3.37]
[1765469566110,0.04834318,130.29,130.27,3.37]
[1765469566311,0.04834318,130.29,130.27,68.57]
[1765469566515,0.04834318,130.29,130.28,3.37]
[1765469566723,65.2,130.36,130.29,3.37]
[1765469567021,429.3598,130.42,130.31,3.37]
[1765469567022,110.6961,130.4,130.31,3.37]
[1765469567318,3.34,130.39,130.31,3.37]
[1765469567509,3.34,130.39,130.32,68.57]
[1765469567706,3.34,130.39,130.34,0.04969678]
[1765469567707,3.39206748,130.37,130.34,0.04969678]
[1765469567917,3.34,130.36,130.34,0.04969678]
[1765469568627,3.38,130.33,130.26,3.11]
[1765469568914,110.7934,130.33,130.26,3.11]
[1765469569721,0.05523556,130.31,130.26,3.11]
[1765469570023,3.43523556,130.31,130.26,3.11]
[1765469570518,6.9066,130.3,130.26,3.11]
[1765469570716,3.38,130.3,130.26,3.11]
[1765469570917,3.43523556,130.31,130.26,3.11]
[1765469571112,10.34163556,130.31,130.26,3.11]
[1765469571324,0.05523556,130.31,130.26,3.11]
[1765469572124,0.05523556,130.31,130.27,3.11]
[1765469574226,0.05523556,130.31,130.28,3.11]
[1765469576627,0.05523556,130.31,130.3,3.11]
[1765469576927,3.38,130.36,130.3,3.11]
[1765469577225,3.38,130.36,130.28,75.2371]
[1765469577226,3.38,130.33,130.28,75.2371]
[1765469577425,3.38,130.33,130.29,3.11]
[1765469577623,3.38,130.35,130.29,3.11]
[1765469578124,0.05152147,130.33,130.31,0.05603042]
[1765469578627,3.43152147,130.33,130.31,0.05603042]
[1765469579015,6.95652147,130.33,130.31,0.05603042]
[1765469579529,6.95652147,130.33,130.31,3.16603042]
[1765469579715,3.38,130.32,130.31,0.05603042]
[1765469580531,10.33652147,130.33,130.31,0.05603042]
[1765469581621,6.95652147,130.33,130.31,0.05603042]
[1765469581926,6.95652147,130.33,130.31,3.16603042]
[1765469581927,0.05152147,130.33,130.31,3.16603042]
[1765469582631,0.05152147,130.33,130.31,0.05603042]
[1765469583020,0.05152147,130.33,130.31,3.16603042]
[1765469583216,3.38,130.38,130.31,3.16603042]
[1765469583423,3.38,130.41,130.33,3.11]
[1765469584127,10.2834,130.36,130.33,3.11]
[1765469584330,0.04941257,130.36,130.33,3.16577703]
[1765469584527,3.42941257,130.36,130.33,0.05577703]
[1765469584732,6.904,130.35,130.33,0.05577703]
[1765469585129,10.284,130.35,130.33,0.05577703]
[1765469586926,0.04941257,130.36,130.33,3.16577703]
[1765469587925,3.38,130.35,130.33,0.05577703]
[1765469588836,0.04941257,130.36,130.33,3.16577703]
[1765469589535,0.04941257,130.36,130.33,0.05577703]
[1765469589735,3.38,130.35,130.33,0.05577703]
[1765469590539,3.38,130.34,130.33,0.05577703]
[1765469591734,10.284,130.35,130.33,0.05577703]
[1765469592939,3.38,130.34,130.33,0.05577703]
[1765469593128,3.38,130.33,130.24,138.7702397]
[1765469593333,110.7944,130.33,130.26,3.11]
[1765469593637,6.9073,130.29,130.26,3.11]
[1765469594232,6.9605986,130.29,130.26,3.16078876]
[1765469595339,0.0532986,130.29,130.26,3.16078876]
[1765469596239,0.0532986,130.29,130.27,3.11]
[1765469597044,0.0532986,130.29,130.28,3.11]
[1765469598352,6.9039,130.35,130.29,3.34]
[1765469598846,3.18,130.34,130.29,3.34]
[1765469599035,3.18,130.34,130.26,75.2385]
[1765469599241,3.18,130.34,130.27,3.11]
[1765469599550,0.05487975,130.32,130.29,3.16748625]
[1765469600946,3.23487975,130.32,130.29,0.05748625]
[1765469606849,3.18,130.39,130.3,3.11]
[1765469607752,0.05086952,130.36,130.33,0.05713349]
[1765469607965,3.23086952,130.36,130.33,0.05296361]
[1765469609464,3.18,130.34,130.24,3.11]
[1765469610465,0.0513115,130.3,130.28,0.04942478]
[1765469610766,3.2313115,130.3,130.28,0.04942478]
[1765469611167,0.0513115,130.3,130.28,0.04942478]
[1765469611963,3.2313115,130.3,130.28,0.04942478]
[1765469612263,3.2313115,130.3,130.22,26.53489478]
[1765469612468,3.18,130.3,130.22,26.53489478]
[1765469612771,3.18,130.3,130.24,3.11]
[1765469613156,0.05129727,130.28,130.26,0.04831657]
[1765469613660,0.05129727,130.28,130.26,3.15831657]
[1765469613858,3.18,130.33,130.26,3.15831657]
[1765469614062,3.18,130.33,130.28,6.9076]
[1765469614263,68.4,130.36,130.28,3.11]
[1765469614470,68.4,130.36,130.3,3.11]
[1765469614666,3.18,130.39,130.3,3.11]
[1765469615064,3.18,130.35,130.33,0.05507859]
[1765469616964,3.23041302,130.36,130.33,0.05507859]
[1765469620577,3.23041302,130.36,130.34,6.9043]
[1765469622375,3.23041302,130.36,130.33,0.05507859]
[1765469623166,3.23041302,130.36,130.33,6.95997859]
[1765469623687,3.23041302,130.36,130.3,6.9061]
[1765469623870,3.23041302,130.36,130.27,191.68008313]
[1765469623871,3.18,130.35,130.27,175.7848]
[1765469624371,3.18,130.34,130.3,6.9065]
[1765469624787,3.18,130.32,130.31,0.05830084]
[1765469628586,3.18,130.32,130.26,107.4669]
[1765469628777,3.18,130.32,130.27,110.8288]
[1765469629178,3.35,130.35,130.29,107.4392]
[1765469629586,3.40006292,130.33,130.29,110.8092]
[1765469629781,0.05006292,130.33,130.3,110.8012]
[1765469630971,0.05006292,130.33,130.31,6.9056]
[1765469632684,0.05006292,130.33,130.31,10.2756]
[1765469632881,0.05006292,130.33,130.32,3.37]
[1765469634686,0.05006292,130.33,130.31,10.2756]
[1765469634984,0.05006292,130.33,130.31,6.9056]
[1765469635184,3.40006292,130.33,130.31,6.9056]
[1765469635380,0.05006292,130.33,130.31,6.9056]
[1765469635984,3.40006292,130.33,130.31,6.9056]
[1765469642578,3.40006292,130.33,130.28,3.37]
[1765469643491,3.40006292,130.33,130.3,6.9065]
[1765469644284,3.40006292,130.33,130.31,6.9059]
[1765469644785,0.05006292,130.33,130.32,6.9055]
[1765469645092,0.05006292,130.33,130.32,10.2755]
[1765469645789,3.35,130.4,130.31,107.4219]
[1765469645978,3.35,130.39,130.32,118.63127058]
[1765469646583,0.04968463,130.37,130.34,0.05425663]
[1765469646801,3.39968463,130.37,130.34,0.05425663]
[1765469647093,3.39968463,130.37,130.35,6.9038]
[1765469647591,0.04968463,130.37,130.35,6.9038]
[1765469648093,0.04968463,130.37,130.35,10.2738]
[1765469648593,0.04968463,130.37,130.36,3.37]
[1765469648791,3.35,130.41,130.39,6.9013]
[1765469650091,3.39881051,130.41,130.39,6.95141236]
[1765469650490,3.39881051,130.41,130.39,0.05011236]
[1765469650893,3.35,130.4,130.39,0.05011236]
[1765469651991,4.89,130.4,130.39,0.05011236]